Cogmind - Beta 15 @@@ ROGUE MODE // 2025.05.29 @ 02:36:33 Player: celerysam Result: Destroyed by 27-RIL(R) with Subdweller Laser Performance ------------- Evolutions (0) 0 Regions Visited (2) 400 Robots Destroyed (19) 95 Value Destroyed (358) 358 Prototype IDs (0) 0 Alien Tech Used (0) 0 Bonus (0) 0 TOTAL SCORE: 853 Bonus ------- None Cogmind --------- Core Integrity 0/250 Matter 215/300 Energy 87/100 System Corruption 0% Temperature Cool (6) Movement Rolling (115) Ox1 Location -10/Subcaves Parts ------- > --- POWER (1) -------- (None) > --- PROPULSION (2) --- Compact Wheel Compact Wheel > --- UTILITY (2) ------ High-capacity Storage Unit Light Armor Plating > --- WEAPON (2) ------- Medium Laser Light Assault Rifle > --- INVENTORY (20) --- Light Ion Engine Light Treads Light Treads Light Treads Light Treads Wheel Wheel Compact Wheel Compact Wheel Small Storage Unit Structural Scanner Datajack Mining Laser Mining Laser Peak State ------------ > --- POWER ------------ Light Ion Engine > --- PROPULSION ------- Aluminum Leg Aluminum Leg > --- UTILITY ---------- Large Storage Unit High-capacity Storage Unit > --- WEAPON ----------- EM Pulse Gun Medium Laser > --- INVENTORY -------- Light Ion Engine Light Treads Light Treads Light Treads Light Treads Wheel Compact Wheel Compact Wheel Compact Wheel Small Storage Unit Medium Laser Light Assault Rifle Grenade Launcher Datajack Mining Laser [Rating: 8] Favorites ----------- Power Light Ion Engine Engine Light Ion Engine Propulsion Aluminum Leg Leg Aluminum Leg Wheel Compact Wheel Utility High-capacity Storage Unit Storage High-capacity Storage Unit Protection Light Armor Plating Weapon Medium Laser Energy Gun Medium Laser Ballistic Gun Light Assault Rifle Launcher Grenade Launcher Special Weapon Mining Laser Build | -11 -10 -10 ------- Run | Yrd Mat Sub Slots Evolved . | . . . Power . | . . . Propulsion . | . . . Utility . | . . . Weapon . | . . . Parts Attached 21 | 6 8 7 Power 2 | 1 . 1 Engine 2 | 1 . 1 Core . | . . . Reactor . | . . . Propulsion 6 | 2 3 1 Treads . | . . . Leg 2 | 2 . . Wheel 4 | . 3 1 Hover . | . . . Flight . | . . . Utility 6 | 1 3 2 Device . | . . . Storage 3 | 1 2 . Processor . | . . . Hackware . | . . . Protection 3 | . 1 2 Artifact . | . . . Weapon 7 | 2 2 3 Energy Gun 4 | 2 2 . Energy Cannon . | . . . Ballistic Gun 1 | . . 1 Ballistic Cannon . | . . . Launcher 1 | . . 1 Special Weapon 1 | . . 1 Impact Weapon . | . . . Slashing Weapon . | . . . Piercing Weapon . | . . . Special Melee Weapon . | . . . Unidentified Prototypes . | . . . Parts Lost 8 | . 2 6 Power 2 | . 1 1 Propulsion 1 | . . 1 Utility 2 | . . 2 Weapon 3 | . 1 2 Highest Loss Streak 4 | . 1 4 To Critical Strikes . | . . . Average Backups 15 | 4 15 15 Power 1 | . 1 1 Propulsion 8 | 3 8 8 Utility 1 | . 1 3 Weapon 3 | . 3 2 Tool/Special . | . . . Unused Backups 15 | . 3 12 Power 1 | . . 1 Propulsion 11 | . 3 8 Utility 1 | . . 1 Weapon 1 | . . 1 Tool/Special 1 | . . 1 Average Slot Usage (%) 87 | . 87 90 Engine 11 | . 12 11 Leg 16 | . 19 . Wheel 11 | . 8 26 Storage 14 | . 14 14 Protection 5 | . 4 11 Energy Gun 26 | . 28 14 Peak Build Rating 8 | 6 8 8 Average Rating 7 | 4 7 7 On Entrance 4 | . 6 8 Naked Turns . | . . . Heaviest Build 51 | 12 50 51 Greatest Support 32 | 20 32 32 Greatest Overweight (x) 2 | . 2 2 Average Overweight (x) 1 | . 1 1 Largest Inventory Capacity 20 | 8 20 20 Average Capacity 17 | 6 17 20 Most Carried 20 | 6 20 20 Average Carried 15 | 5 15 15 Final Capacity 20 | 8 20 20 Final Carried 20 | 6 20 14 Class Distribution -------------------- 100% | Mutant Dominant Class ---------------- Mutant | -10/Materials Mutant | -10/Subcaves Resources | -11 -10 -10 ----------- Run | Yrd Mat Sub Matter Collected 335 | 245 90 . Remotely . | . . . Salvage Created 509 | . 460 49 Parts 42 | . 37 5 Haulers Intercepted 2 | . 2 . Recyclers Shooed . | . . . Parts Field Recycled . | . . . Retrieved Matter . | . . . Parts Self-Destructed . | . . . Prevented . | . . . Kills | -11 -10 -10 ------- Run | Yrd Mat Sub Combat Hostiles Destroyed 14 | . 12 2 Guns 14 | . 12 2 Classes Destroyed 5 | . 4 1 Hauler 2 | . 2 . Watcher 3 | . 3 . Swarmer 8 | . 8 . Grunt 4 | . 4 . Subdweller 2 | . . 2 Best Kill Streak 3 | . 3 2 Combat Bots Only 3 | . 3 2 Max Kills in Single Turn 1 | . 1 1 Gunslinging . | . . . Exploded . | . . . Melee . | . . . Uniques/NPCs Destroyed . | . . . Combat | -11 -10 -10 -------- Run | Yrd Mat Sub Hostile Shots Fired 105 | . 64 41 Missed 25 | . 14 11 Hits 80 | . 50 30 Projectile 80 | . 50 30 Critical Strikes 1 | . . 1 Damage Taken 1137 | . 440 697 Core 252 | . 134 118 Absorbed by Shields . | . . . Core Remaining (%) 100 | 100 . . Volleys Fired 61 | . 36 25 Largest 2 | . 2 2 Hottest 100 | . 100 100 Shots Fired 109 | . 69 40 Gun 101 | . 69 32 Cannon . | . . . Launcher 2 | . . 2 Special 6 | . . 6 Kinetic 10 | . . 10 Thermal 76 | . 48 28 Explosive 2 | . . 2 Electromagnetic 21 | . 21 . Robot Hit Streak 12 | . 6 12 Robot Miss Streak 3 | . 3 1 Penetration Max . | . . . Secondary Targets 4 | . 4 . Max Gunslinging Chain 1 | . 1 . Shots Hit Robots 66 | . 40 26 Core Hits 27 | . 21 6 Critical Kills . | . . . Critical Parts Destroyed . | . . . Critical Strikes . | . . . Melee Attacks . | . . . Impact . | . . . Slashing . | . . . Piercing . | . . . Sneak Attacks . | . . . Combat Hostiles . | . . . Follow-up Attacks . | . . . Damage Inflicted 970 | . 531 439 Guns 815 | . 531 284 Cannons . | . . . Explosions 155 | . . 155 Melee . | . . . Ramming . | . . . Kinetic 73 | . . 73 Thermal 537 | . 326 211 Explosive 155 | . . 155 Electromagnetic 205 | . 205 . Impact . | . . . Slashing . | . . . Piercing . | . . . Highest Corruption . | . . . Average Corruption . | . . . Corruption Purged . | . . . Corruption Blocked . | . . . Overload Shots . | . . . Overflow Damage 9 | . . 9 Projectiles . | . . . Explosions 9 | . . 9 Melee . | . . . Knockbacks . | . . . Impact . | . . . Kinetic . | . . . Secondary . | . . . Self-Inflicted Damage 78 | . . 78 Shots 2 | . . 2 Rammed . | . . . Targets Rammed . | . . . Kicked . | . . . Crushed . | . . . Highest Temperature 234 | . 234 5 Average Temperature 79 | . 83 3 Received Heat Transfer 234 | . 96 138 Effects 1 | . 1 . Interference 1 | . 1 . Siege Activations . | . . . Martial Activations . | . . . Shielding Activations . | . . . Robots Disrupted . | . . . Combat Hostiles . | . . . Robots Corrupted . | . . . Combat Hostiles . | . . . Parts Fried . | . . . Impact Corruptions . | . . . Robots Melted . | . . . Combat Hostiles . | . . . Parts Melted 2 | . 1 1 Heat Transferred 1591 | . 962 629 Parts Sabotaged . | . . . Parts Stolen . | . . . Parts Stripped . | . . . Power Chain Reactions . | . . . Alert | -11 -10 -10 ------- Run | Yrd Mat Sub Maximum Alert Level . | . . . Low Security (%) 100 | 100 100 . Level 1 . | . . . Level 2 . | . . . Level 3 . | . . . Level 4 . | . . . Level 5 . | . . . High Security . | . . . Max Security . | . . . Peak Influence 135 | . 135 . Initial . | . . . Average 28 | . 30 . Influence Increases 350 | . 350 . Destroy 0b10 Robot/C 240 | . 240 . Destroy 0b10 Robot/NC 25 | . 25 . Destroy Leader 70 | . 70 . Disable Machine 15 | . 15 . Influence Decreases 350 | . 253 97 Entered New Map 47 | . . 47 Time Decay 243 | . 233 10 Lost Part 60 | . 20 40 Squads Dispatched 3 | . 3 . Investigation 1 | . 1 . Extermination . | . . . Reinforcement 2 | . 2 . Assault . | . . . Garrison . | . . . Intercept . | . . . Searches Triggered . | . . . Construction Impeded . | . . . Haulers Reinforced . | . . . Active Scanning Responses . | . . . Cargo Convoy Interrupts . | . . . Stealth | -11 -10 -10 --------- Run | Yrd Mat Sub Distress Signals 1 | . 1 . Communications Jammed . | . . . Distress Signals . | . . . Times Spotted 24 | . 20 4 Peak Tracking Total 4 | . 4 2 Tactical Retreats . | . . . Traps | -11 -10 -10 ------- Run | Yrd Mat Sub Traps Triggered 1 | . 1 . Indirectly . | . . . Trap Hack Attempts . | . . . Triggered . | . . . Disarmed . | . . . Reprogrammed . | . . . Reused . | . . . Traps Extracted . | . . . Installed . | . . . Triggered . | . . . Machines | -11 -10 -10 ---------- Run | Yrd Mat Sub Machines Disabled 1 | . 1 . Max in Single Turn 1 | . 1 . Machines Repaired . | . . . Machines Dismantled . | . . . Machines Sabotaged . | . . . Overloaded Fab Kills . | . . . Hacking | -11 -10 -10 --------- Run | Yrd Mat Sub Machines Accessed . | . . . Terminals . | . . . Fabricators . | . . . Repair Stations . | . . . Recycling Units . | . . . Scanalyzers . | . . . Garrison Access . | . . . Total Hacks . | . . . Successful . | . . . Failed . | . . . Catastrophic . | . . . Database Lockouts . | . . . Manual . | . . . Terminals . | . . . Fabricators . | . . . Repair Stations . | . . . Recycling Units . | . . . Scanalyzers . | . . . Garrison Access . | . . . Terminal Hacks . | . . . Fabricator Hacks . | . . . Repair Station Hacks . | . . . Recycling Unit Hacks . | . . . Scanalyzer . | . . . Garrison Access Hacks . | . . . Unauthorized Hacks . | . . . Terminals . | . . . Fabricators . | . . . Repair Stations . | . . . Recycling Units . | . . . Scanalyzers . | . . . Garrison Access . | . . . Data Cores Recovered . | . . . Used . | . . . Hacking Detections . | . . . Full Trace Events . | . . . Feedback Events . | . . . Feedback Blocked . | . . . Robot Schematics Acquired . | . . . Robots Built . | . . . Authchips . | . . . Time . | . . . Total Robot Build Rating . | . . . Part Schematics Acquired . | . . . Parts Built . | . . . Authchips . | . . . Time . | . . . Total Part Build Rating . | . . . Parts Repaired . | . . . Time . | . . . Parts Recycled . | . . . Recycled Matter . | . . . Retrieved Matter . | . . . Retrieved Components . | . . . Parts Scanalyzed . | . . . Part Schematics Acquired . | . . . Parts Damaged . | . . . Bothacking | -11 -10 -10 ------------ Run | Yrd Mat Sub Used RIF Installer . | . . . Robots Hacked . | . . . Non-combat . | . . . Combat . | . . . Robot Hacks Applied . | . . . Relay Couplers Released . | . . . Fabnet Peak Effective % . | . . . Robots Rewired . | . . . Allies Hacked . | . . . Hacks Repelled . | . . . Allies | -11 -10 -10 -------- Run | Yrd Mat Sub Total Allies . | . . . Largest Group . | . . . Highest-Rated Group . | . . . Highest-Rated Ally . | . . . Total Orders . | . . . Ally Attacks . | . . . Total Damage . | . . . Kills . | . . . Allies Corrupted . | . . . Allies Melted . | . . . Intel | -11 -10 -10 ------- Run | Yrd Mat Sub Active Infowar (turns) . | . . . Robot Analysis Total . | . . . Derelict Logs Recovered . | . . . Drone Launches . | . . . Drone Recoveries . | . . . Exploration | -11 -10 -10 ------------- Run | Yrd Mat Sub Turns Passed 1617 | 77 1351 189 Spaces Moved 892 | 60 739 93 Core 13 | 13 . . Treads . | . . . Legs 463 | 47 416 . Wheels 416 | . 323 93 Hover . | . . . Flight . | . . . Fastest Speed 50 | 50 115 115 Average Speed 154 | 104 163 115 Slowest Speed 260 | 120 260 130 Overloaded Moves . | . . . Propulsion Burnouts . | . . . Robots Hopped . | . . . Potential Cave-ins . | . . . Cave-ins Triggered . | . . . Exploration Rate (%) 36 | 4 95 11 Regions Visited 2 Branch Regions 1 Pre-discovered Areas . | . . . Known Exits Taken . | . . . Unknown Exits Taken 2 | 1 1 . Scrap Searched . | . . . Spaces Dug . | . . . Terrain Destroyed 12 | . . 12 Melee . | . . . Projectile . | . . . AOE 12 | . . 12 Terrain Rammed . | . . . Walls Destroyed . | . . . Machines Disabled . | . . . Actions | -11 -10 -10 --------- Run | Yrd Mat Sub Total 1011 | 71 815 125 Wait . | . . . Move 890 | 59 738 93 Hop . | . . . Pick Up 29 | 6 23 . Fast Attach 7 | 6 1 . Attach 8 | . 2 6 Detach 1 | . 1 . Swap 6 | . 5 1 Drop 9 | . 9 . Fire 61 | . 36 25 Melee . | . . . Ram . | . . . Kick . | . . . Crush . | . . . Escape Stasis . | . . . Rewire . | . . . Trap . | . . . Miscellaneous . | . . . Route ------- -11/Scrapyard -10/Materials (discovered 5 exits: [*Mat x2] / [*Min x2] / [*Sub]) -10/Subcaves History --------- Turn | Location | Event 16 | -11/Scrapyard | Discovered new exit (range 16) 78 | -11/Scrapyard | Entered Materials 208 | -10/Materials | Discovered new exit (range 15) 301 | -10/Materials | Build established: Mutant 486 | -10/Materials | Discovered new exit (range 12) 711 | -10/Materials | Discovered new exit (range 9) 1168 | -10/Materials | Discovered new exit (range 5) 1249 | -10/Materials | Core integrity fell below 50% 1363 | -10/Materials | Discovered new exit (range 7) 1429 | -10/Materials | Entered Subcaves 1430 | -10/Subcaves | Ambushed by Subdwellers from Twisted Machinery 1430 | -10/Subcaves | Approached by a straggling Scientist 1445 | -10/Subcaves | Core integrity fell below 20% 1475 | -10/Subcaves | Lost 4 parts (1n1u2w) 1618 | -10/Subcaves | Destroyed by 27-RIL(R) with Subdweller Laser Last Messages --------------- can get us both out of this nasty situation. At least I think I can... The group I got separated from was talking about a shortcut back to the UFD." 01448_ The unstable cave ceiling collapses. 01450_ YK-UYB(R) affixes Scrap Shield Fragment to Scrap Shield. 01454_ YK-UYB(R) destroyed. 01458_ Subatomizers dissect the Disposable Heat Sink. 00-0WI(c): "I think it's somewhere northeast of here" 01480_ Subatomizers dissect the Disposable Heat Sink. 00-0WI(c): "I think it's somewhere northeast of here" 01602_ GL-7VY(R): "SUBMAD!" 01608_ Critical hit (Destroy). 01608_ Lgt. Armor Plating destroyed. 01609_ Ion Engine destroyed. Map ----- +----------------------------------------------------+ | ?????????????????????????????????????????????????? | | ?????????????????????????????????????????????????? | | ?????????????????????????????????????????????????? | | ?????????????????????????????????????????????????? | | ?????????????????????????????????????????????????? | | ?????????????????????????????????????????????????? | | ?????????????????????????????????????????????????? | | ?????????????????????????????????????????????????? | | ?????????????????????????????????????????????????? | | ?????????????????????????????????????????????????? | | ????????????????????????# ??????????????????????? | | ???????????????????????? ??????????????????????? | | ???????????????????????? ?????????????????????? | | ???????????????????????# ??#??????????????????? | | ??????????????????????? ? #??????????????????? | | ??????????????????????? ? ??????????????????? | | ???????????????????????# ? ??????????????????? | | ???????????????????????# ? ???????????????????? | | ???????????????????????# ##??????????????????? | | ??????????????????????## # ???????????????????? | | ????###???????????????? #???????????????????? | | ???## #######?????????? #R ##??????????????????? | | ???#"" %#??####????# ## #???????????????? | | ???#"" "" #### ##???# = #???????????????? | | #####"""""# ## ##?## %| ## #??????????? | | ## ##### ## #?# @ #??????????? | | ####"# ### #????????????? | | "" # ## #????????????? | | # " #% ### #????????????? | | #### #?## ## #????????????? | | ???## ###??# ##?? ##????????????? | | ????## ###????## #???? ###?????????????? | | ?????######???????### #?????#???????????????? | | ????????????????????# #?????????????????????? | | ????????????????????### ????????????????????? | | ??????????????????????## ???????????????????? | | ???????????????????????#c #??????????????????? | | ???????????????????????# ###??????????????????? | | ???????????????????????? R#????????????????????? | | ???????????????????????? #????????????????????? | | ???????????????????????? ????????????????????? | | ???????????????????????? ?????????????????????? | | ????????????????????????# ???????????????????????? | | ?????????????????????????????????????????????????? | | ?????????????????????????????????????????????????? | | ?????????????????????????????????????????????????? | | ?????????????????????????????????????????????????? | | ?????????????????????????????????????????????????? | | ?????????????????????????????????????????????????? | | ?????????????????????????????????????????????????? | +----------------------------------------------------+ Best States ------------- Heat Dissipation 25 Energy Generation 10 Energy Capacity 250 Matter Stores 300 Matter Capacity 300 Sight Range 16 Terrain Scan Density 10 Armor Coverage 150 Evasion (%) 55 Item Schematics ----------------- None Robot Schematics ------------------ None Fabricated ------------ Nothing Repaired ---------- Nothing Alien Tech Used ----------------- None Achievements -------------- None Challenges ------------ None Game ------ Seed LargePotentialCharge Manual? 0 Play Time 00:11:22 Cumulative 267.6 hours Start 2025.05.29 @ 02:24:31 End 2025.05.29 @ 02:36:33 Sessions 1 Manual Loads 0 Difficulty Rogue Special Mode None Game No. 410 Rogue 410 Adventurer 0 Explorer 0 Win Type - Total 1 Types 1/0/0/0/0/0/0/0/0/0 Lore% 64 Gallery% 63 Achievement% 43 Wizard Run 0 Options --------- Layout 1 ASCII 0 Keyboard 0 Movement Mouse Keybinds 0 Fullscreen 2 Font 24/Smallcaps Map View 50x35 Zoom Use 0% Tactical HUD 1 Map Filters NONE Filters NONE Steam 1 RUN: 88bed20d-e18b-42d4-9849-e778a087bcac